bitfinex/quotes_ETHUSD_20250724
["timestamp","ask_amount","ask_price","bid_price","bid_amount"]
[1753386719953,0.55,3747.9,3747.8,0.9228]
[1753386720164,0.55,3747.9,3747.8,3.59103202]
[1753386720364,0.002,3748.3,3748.0,0.7521]
[1753386720569,0.002,3748.3,3748.1,2.66800303]
[1753386720778,0.002,3748.3,3748.1,3.59080303]
[1753386721062,0.552,3748.3,3748.1,0.9228]
[1753386721535,0.552,3748.3,3748.2,3.59074728]
[1753386721937,0.002,3748.3,3748.2,4.71133964]
[1753386722565,0.002,3748.3,3748.1,0.1336]
[1753386722753,0.55,3748.1,3747.3,0.1336]
[1753386723066,0.55,3747.3,3747.1,0.4598]
[1753386723268,0.55,3747.3,3747.2,0.9228]
[1753386723438,0.55,3747.9,3747.4,2.66850661]
[1753386723628,0.55,3748.0,3747.6,2.66836055]
[1753386723830,0.55,3748.0,3747.7,0.9228]
[1753386724130,0.55,3748.0,3747.9,2.66816083]
[1753386724331,0.55,3748.0,3747.9,3.59096083]
[1753386724553,0.55,3748.0,3747.9,0.9228]
[1753386724767,0.55,3748.0,3747.9,3.59096083]
[1753386725465,0.55,3748.0,3747.7,0.801]
[1753386725668,0.55,3748.0,3747.9,3.13216083]
[1753386726167,0.55,3748.0,3747.9,3.59096083]
[1753386726353,0.002,3748.3,3748.0,2.66808964]
[1753386726699,0.002,3748.3,3748.2,11.76145332]
[1753386726979,0.002,3748.3,3748.2,12.54225332]
[1753386727334,0.002,3748.3,3748.2,4.37154728]
[1753386727534,0.002,3748.3,3748.2,8.56554728]
[1753386728365,0.002,3748.3,3747.9,0.4588]
[1753386728571,0.552,3748.3,3748.0,4.194]
[1753386728769,0.03334934,3748.2,3748.0,4.194]
[1753386729071,0.03334934,3748.2,3747.9,2.6681081]
[1753386729366,0.552,3748.3,3748.0,2.66808361]
[1753386729535,0.03334934,3748.2,3747.9,3.59094486]
[1753386729736,0.55,3748.1,3747.9,0.9228]
[1753386729967,0.55,3747.9,3747.8,4.194]
[1753386730335,0.002,3748.3,3747.8,7.32103202]
[1753386730547,0.002,3748.3,3747.8,7.32623202]
[1753386730847,0.002,3748.3,3747.9,0.4588]
[1753386731246,0.002,3748.3,3747.4,0.7976]
[1753386731451,0.55,3747.9,3747.2,7.32141109]
[1753386731631,0.55,3747.7,3747.2,7.32141109]
[1753386731833,3.25153107,3747.9,3747.1,0.001]
[1753386732182,1.04485201,3747.9,3747.2,2.66865208]
[1753386732384,1.04485201,3747.9,3747.1,0.001]
[1753386732385,3.25152188,3747.9,3747.1,0.001]
[1753386732687,0.55,3747.7,3747.1,0.001]
[1753386732851,0.55,3747.9,3747.2,3.59145926]
[1753386733178,0.55,3747.9,3747.5,2.66840018]
[1753386733471,0.552,3748.3,3747.8,2.66817725]
[1753386733782,0.552,3748.3,3747.9,3.59095279]
[1753386733953,0.552,3748.3,3747.9,2.66815279]
[1753386734270,0.002,3748.3,3748.0,0.9228]
[1753386734439,0.002,3748.3,3747.7,0.766]
[1753386734640,0.002,3748.3,3748.1,0.9228]
[1753386735575,0.4842,3748.2,3747.7,2.66825339]
[1753386735741,0.4842,3748.2,3747.7,3.16115339]
[1753386736073,0.002,3748.3,3748.0,2.66804614]
[1753386736258,0.002,3748.3,3747.9,2.66815526]
[1753386736440,0.002,3748.3,3747.9,0.9571]
[1753386736633,0.6836,3748.0,3747.9,3.62525778]
[1753386736833,0.6836,3748.0,3747.9,0.9571]
[1753386738271,0.6836,3748.0,3747.9,3.62526083]
[1753386738975,0.6836,3748.0,3747.9,0.4642]
[1753386739269,0.55,3747.9,3747.8,0.4929]
[1753386739438,0.55,3747.9,3747.7,2.6682781]
[1753386739647,0.1336,3748.0,3747.5,0.1336]
[1753386739851,0.6836,3747.8,3747.4,5.1511]
[1753386740047,0.03335379,3747.7,3747.4,7.81961635]
[1753386740256,0.03335379,3747.7,3747.1,3.42742254]
[1753386740257,0.55,3747.6,3747.1,0.7587]
[1753386740450,0.55,3747.4,3747.2,4.194]
[1753386740989,0.55,3747.4,3747.2,4.6582]
[1753386741189,0.55,3747.4,3747.2,0.9571]
[1753386741377,0.8278,3747.2,3747.1,0.001]
[1753386741692,4.68253824,3747.2,3747.1,0.001]
[1753386742054,7.8353975,3747.2,3747.1,0.001]
[1753386742254,7.80203926,3747.2,3747.1,0.001]
[1753386742892,8.15403926,3747.2,3747.1,0.001]
[1753386743789,2.48538,3747.2,3747.1,0.001]
[1753386743987,2.51873824,3747.2,3747.1,0.001]
[1753386744487,5.1873975,3747.2,3747.1,0.001]
[1753386749104,2.51873824,3747.2,3747.1,0.001]
[1753386749299,5.1873975,3747.2,3747.1,0.001]
[1753386749887,12.3813975,3747.2,3747.1,0.001]
[1753386750093,12.34803926,3747.2,3747.1,0.001]
[1753386752718,20.9005453,3747.2,3747.1,1e-08]
[1753386753015,12.15903926,3747.2,3747.1,1e-08]
[1753386753219,26.65903926,3747.2,3747.1,1e-08]
[1753386753396,26.10903926,3747.2,3747.1,1e-08]
[1753386753596,22.11303926,3747.2,3747.1,1e-08]
[1753386753822,12.15903926,3747.2,3747.1,1e-08]
[1753386755318,12.15903926,3747.2,3746.3,0.001]
[1753386755319,4.01252912,3746.4,3746.3,0.001]
[1753386755536,11.23989448,3746.4,3746.3,0.001]
[1753386755689,11.20652912,3746.4,3746.3,0.001]
[1753386755884,7.84872912,3746.4,3746.3,0.001]
[1753386756088,12.04272912,3746.4,3746.3,0.001]
[1753386756399,13.51391616,3746.4,3746.3,0.001]
[1753386756989,12.96391616,3746.4,3746.3,0.001]
[1753386757226,13.51391616,3746.4,3746.3,0.001]
[1753386757407,13.16191616,3746.4,3746.3,0.001]
[1753386758186,13.51391616,3746.4,3746.3,0.001]
[1753386758909,13.02971616,3746.4,3746.3,0.001]
[1753386759114,13.51391616,3746.4,3746.3,0.001]
[1753386759897,13.16191616,3746.4,3746.3,0.001]
[1753386760351,4.47118704,3746.4,3746.3,0.001]
[1753386760503,4.194,3746.7,3746.3,0.9581]
[1753386760829,3.55,3746.6,3746.4,0.9571]
[1753386761033,3.55,3746.6,3746.5,0.9571]
[1753386761034,0.55,3746.6,3746.5,0.9571]
[1753386761232,4.194,3746.7,3746.5,0.9571]
[1753386761433,2.66859158,3747.3,3746.6,2.66908663]
[1753386761636,4.194,3747.2,3746.7,0.9571]
[1753386761836,4.194,3747.2,3746.6,2.66908663]
[1753386762028,0.55,3747.0,3746.8,0.9571]
[1753386762234,4.194,3747.2,3746.7,2.66900397]
[1753386762434,4.194,3747.2,3746.9,0.9571]
[1753386762636,0.7699,3748.0,3747.0,0.9571]
[1753386762936,0.6836,3747.2,3747.1,0.9571]
[1753386763122,0.6836,3747.2,3747.1,0.4929]
[1753386763324,0.1336,3747.2,3747.1,0.9571]
[1753386763529,0.1336,3747.2,3746.9,0.7888]
[1753386763731,0.1336,3747.0,3746.7,0.4929]
[1753386763928,0.55,3746.9,3746.8,0.4642]
[1753386764224,0.55,3746.9,3746.8,0.9571]
[1753386765125,0.55,3746.9,3746.8,0.4642]
[1753386766148,1.18856996,3746.9,3746.4,0.4929]
[1753386766344,0.55,3746.6,3746.4,0.4929]
[1753386766550,0.6836,3746.5,3746.4,0.9677]
[1753386768663,0.6836,3746.5,3746.4,0.9687]
[1753386769160,0.6836,3746.5,3746.4,0.9476]
[1753386773386,0.1336,3746.5,3746.4,3.61682912]
[1753386773661,0.55,3746.7,3746.6,2.66908663]
[1753386773984,0.1336,3747.1,3747.0,2.6688017]
[1753386774331,0.002,3747.2,3747.1,3.44563048]
[1753386774558,0.002,3747.2,3747.1,4.52583048]
[1753386774776,0.002,3747.2,3747.1,4.7179937]
[1753386775083,0.002,3747.2,3747.1,5.6645937]
[1753386777345,0.002,3748.0,3747.1,5.6645937]
[1753386777346,0.002,3748.0,3747.9,3.45916083]
[1753386777549,0.002,3748.0,3747.9,3.59276083]
[1753386777851,0.002,3748.0,3747.9,8.73236083]
[1753386778029,0.002,3748.0,3747.9,10.78177275]
[1753386780338,0.002,3748.0,3747.9,10.78077275]
[1753386783373,0.002,3748.0,3747.9,10.77977275]
[1753386785991,2.66865926,3747.2,3747.1,1.13876322]
[1753386786137,2.81,3746.5,3741.3,1.13]
[1753386786338,2.81,3746.5,3738.7,0.7804]
[1753386786339,0.1,3741.7,3741.5,0.1336]
[1753386786573,8.17620281,3741.6,3741.5,0.1336]
[1753386786883,14.04802616,3741.6,3741.5,0.1336]
[1753386787075,14.04802616,3741.6,3741.5,3.74535314]
[1753386787076,26.09934115,3741.6,3741.5,3.74535314]
[1753386787278,0.1,3740.8,3740.3,4.483]
[1753386787468,3.66968106,3740.8,3740.1,0.4748]
[1753386787667,3.66968106,3740.8,3740.5,4.481]
[1753386787863,3.66968106,3740.8,3740.7,4.481]
[1753386788163,3.66968106,3740.8,3740.7,0.001]
[1753386788340,3.37864224,3740.8,3740.7,0.001]
[1753386788540,3.94376084,3740.8,3740.7,0.001]
[1753386789038,3.94376084,3740.8,3740.7,4.477]
[1753386789279,3.91034553,3740.8,3740.7,0.001]
[1753386789469,0.1,3739.4,3739.1,0.4748]
[1753386789645,0.8096904,3739.3,3739.2,4.9518]
[1753386790047,4.09720041,3739.3,3739.2,4.9518]
[1753386790253,0.1,3739.2,3739.0,6.942]
[1753386790461,0.1,3739.2,3739.1,4.9518]
[1753386790662,0.66215041,3739.2,3739.1,4.9518]
[1753386790861,3.84966042,3739.2,3739.1,5.4236]
[1753386791266,0.56215041,3739.2,3739.1,5.4236]
[1753386791466,0.56215041,3739.2,3739.1,0.9466]
[1753386791796,3.75205392,3739.2,3739.1,5.4196]
[1753386791959,3.71830095,3739.2,3739.1,15.25599217]
[1753386792283,0.44721849,3739.2,3739.1,15.25599217]
[1753386792483,2.78268652,3739.2,3739.1,15.25599217]
[1753386792791,2.78268652,3739.2,3739.1,10.78299217]
[1753386792982,0.44721849,3739.2,3739.1,8.4206]
[1753386793294,0.44721849,3739.2,3739.1,4.473]
[1753386793688,0.44721849,3739.2,3739.1,4.472]
[1753386793992,2.7798712,3739.2,3739.1,4.472]
[1753386794305,0.44721849,3739.2,3739.1,4.472]
[1753386794619,0.44721849,3739.2,3739.1,4.467]
[1753386795166,2.30780962,3739.2,3739.1,0.4748]
[1753386795374,0.44721849,3739.2,3739.1,0.4748]
[1753386795674,0.44721849,3739.2,3739.1,11.8918]
[1753386796259,0.44721849,3739.2,3739.1,12.53317965]
[1753386796660,0.44721849,3739.2,3739.1,5.39373928]
[1753386796892,0.44721849,3739.2,3739.1,12.52917965]
[1753386797288,2.30409159,3739.2,3739.1,9.85473928]
[1753386797509,0.7666,3739.1,3736.1,0.001]
[1753386797815,0.1,3736.2,3736.1,0.001]
[1753386798024,0.65,3736.2,3736.1,0.272]
[1753386798564,0.65,3736.2,3736.1,0.001]
[1753386798770,0.55,3736.2,3736.1,4.794]
[1753386799010,0.55,3736.5,3736.1,5.2219]
[1753386799165,0.6955668,3736.8,3736.2,0.9048]
[1753386799369,0.6955668,3736.8,3736.5,2.67630135]
[1753386799370,0.69418409,3736.6,3736.5,2.67630135]
[1753386799571,0.69418409,3737.0,3736.9,2.67601487]
[1753386799767,0.69418409,3737.0,3736.9,3.10390601]
[1753386800007,0.69418409,3737.2,3737.1,2.67587166]
[1753386800418,0.69418409,3737.2,3737.1,3.10377166]
[1753386800580,0.69418409,3737.2,3735.9,6.83739217]
[1753386800770,0.69418409,3737.2,3736.5,3.1041814]
[1753386800972,0.1,3736.6,3736.1,7.7698]
[1753386801213,0.79418409,3736.6,3736.1,7.7698]
[1753386801506,0.69418409,3736.6,3736.2,4.794]
[1753386801704,0.69418409,3736.6,3736.2,5.2219]
[1753386801903,1.84790289,3736.5,3736.3,0.4279]
[1753386802123,5.60373517,3737.0,3736.4,3.10422101]
[1753386802326,2.33265271,3736.6,3736.3,0.4769]
[1753386802615,2.33265271,3736.9,3736.8,2.67608649]
[1753386802770,0.1,3737.3,3736.9,2.67596868]
[1753386802971,2.30691062,3736.9,3736.5,2.67630135]
[1753386803171,2.30691062,3737.0,3736.6,5.2629]
[1753386803400,2.30691062,3737.1,3736.8,2.67603101]
[1753386803608,2.30691062,3737.2,3736.7,2.6761564]
[1753386803819,2.30691062,3737.2,3736.6,5.2629]
[1753386803974,1.84581846,3736.9,3736.6,5.2629]
[1753386804306,0.55376009,3736.8,3736.7,3.1040581]
[1753386804731,0.55376009,3736.8,3736.7,5.2109]
[1753386804934,0.55376009,3736.8,3736.2,3.1043454]
[1753386805093,0.92267369,3736.3,3736.2,3.10441624]
[1753386805299,0.55376009,3736.3,3736.2,7.87941624]
[1753386805503,0.55376009,3736.3,3736.2,3.10441624]
[1753386805708,1.93777063,3736.3,3736.2,7.87741624]
[1753386805914,0.55376009,3736.3,3736.2,7.87741624]
[1753386806158,0.55376009,3736.3,3736.2,2.67651624]
[1753386806338,0.55376009,3736.3,3736.2,4.773]
[1753386806710,0.55376009,3736.3,3736.2,2.67651624]
[1753386807234,0.55376009,3736.3,3736.2,7.44351624]
[1753386807636,0.55,3736.9,3736.5,2.67624504]
[1753386807823,0.55,3736.9,3736.6,7.44422611]
[1753386808028,0.55,3737.1,3736.7,0.1336]
[1753386808439,0.55,3737.1,3736.8,4.759]
[1753386808941,0.55,3736.9,3736.8,4.759]
[1753386809143,0.79067995,3736.9,3736.8,4.759]
[1753386809341,0.79067995,3736.9,3736.8,7.43508649]
[1753386809342,0.24067995,3736.9,3736.8,7.43508649]
[1753386809509,0.24067995,3736.9,3736.8,7.86298649]
[1753386809707,0.65,3737.3,3737.2,2.67580006]
[1753386809909,0.79103073,3737.3,3737.1,2.67585462]
[1753386810109,0.34103073,3737.2,3737.1,2.80945462]
[1753386810334,0.34109859,3737.2,3737.1,7.56045462]
[1753386810511,0.34109859,3737.2,3737.1,7.55945462]
[1753386810712,0.6836,3737.7,3737.6,2.67551369]
[1753386810959,0.24109614,3737.7,3737.6,7.42551369]
[1753386811327,0.24109614,3737.7,3737.6,7.55911369]
[1753386811521,0.8225,3738.8,3737.6,8.46391369]
[1753386811725,0.69071684,3738.7,3738.6,2.67479805]
[1753386811946,0.55711684,3738.7,3738.6,7.42079805]
[1753386812215,0.55711684,3738.7,3738.6,7.41879805]
[1753386812431,0.37583564,3739.0,3738.9,2.67458343]
[1753386812633,1.39055696,3739.0,3738.9,7.41858343]
[1753386812878,0.69225129,3739.0,3738.9,7.41858343]
[1753386813081,2.55398199,3739.0,3738.9,7.41858343]
[1753386813296,0.80158052,3739.0,3738.9,7.24468317]
[1753386813654,0.80158583,3739.0,3738.9,8.14948317]
[1753386813852,0.55865129,3739.0,3738.9,8.14948317]
[1753386814054,1.96014404,3739.0,3738.9,2.50068317]
[1753386814278,2.20407054,3739.0,3738.9,2.50068317]
[1753386814481,0.80251836,3739.0,3738.9,4.34482949]
[1753386814794,0.80251836,3739.0,3738.9,6.75857871]
[1753386814980,1.74089512,3739.0,3738.9,6.75857871]
[1753386815189,1.65338415,3739.0,3738.9,6.41081267]
[1753386815390,0.94956397,3739.0,3738.9,6.41081267]
[1753386815769,0.80251836,3739.0,3738.9,6.41081267]
[1753386816201,1.89466495,3739.0,3738.9,5.97610517]
[1753386816348,0.95074215,3739.0,3738.9,5.97610517]
[1753386816757,2.37269063,3739.0,3738.9,5.97610517]
[1753386816956,2.37269063,3739.0,3738.9,6.40400517]
[1753386816957,0.95074215,3739.0,3738.9,6.40400517]
[1753386817250,1.89873873,3739.0,3738.9,6.40400517]
[1753386817475,1e-08,3739.2,3739.1,2.67444037]
[1753386817677,1.42412549,3740.0,3739.9,2.67386828]
[1753386818000,1.42412549,3740.0,3735.4,0.001]
[1753386818001,1.607,3739.3,3735.4,0.001]
[1753386818146,2.81,3739.4,3735.4,0.001]
[1753386818147,3.3597581,3736.7,3735.4,0.001]
[1753386818497,6.22644461,3736.3,3736.2,5.121]
[1753386818649,3.55,3736.1,3736.0,5.119]
[1753386818847,0.55,3736.1,3736.0,5.119]
[1753386819177,0.55,3736.1,3735.4,0.001]
[1753386819178,0.55,3736.0,3735.4,0.001]
[1753386819381,1.01795824,3736.0,3735.9,5.118]
[1753386819546,0.9845,3736.0,3735.9,5.118]
[1753386820193,0.9845,3736.0,3735.9,0.001]
[1753386820476,4.12085952,3736.0,3735.9,5.103]
[1753386820676,1.4442,3736.0,3735.9,5.103]
[1753386821402,0.9845,3736.0,3735.9,5.103]
[1753386821605,0.9845,3736.0,3735.9,0.001]
[1753386821804,0.9845,3736.0,3735.9,5.101]
[1753386822516,0.9845,3736.0,3735.9,5.08971678]
[1753386822883,0.9845,3736.0,3735.5,2.6769835]
[1753386823083,0.9845,3736.0,3735.4,0.001]
[1753386823084,0.55,3735.5,3735.4,0.001]
[1753386823298,1.25844825,3735.5,3735.4,0.001]
[1753386823518,0.55,3735.5,3735.4,0.001]
[1753386823813,0.9845,3735.5,3735.4,5.09]
[1753386823988,1.4442,3735.5,3735.4,0.001]
[1753386825106,0.9845,3735.5,3735.4,2.67808946]
[1753386825305,1.69290198,3735.5,3735.4,2.67808946]
[1753386825505,0.55,3735.5,3735.4,0.001]
[1753386825708,1.25840198,3735.5,3735.4,2.67808946]
[1753386825912,1.25840198,3735.5,3735.4,0.001]
[1753386826293,0.55,3735.5,3735.4,2.67808946]
[1753386826492,1.26683611,3735.5,3735.4,0.001]
[1753386826825,1.03301162,3735.5,3735.4,5.072]
[1753386826989,0.9995489,3735.5,3735.4,5.072]
[1753386828000,0.9995489,3735.5,3735.4,5.065]
[1753386828722,1.70816601,3735.5,3735.4,7.74208946]
[1753386829220,0.9995489,3735.5,3735.4,5.065]
[1753386829426,2.5225926,3735.5,3735.4,5.065]
[1753386829623,2.5225926,3735.5,3735.4,7.74208946]
[1753386829805,2.5225926,3735.5,3735.4,7.76918946]
[1753386830005,2.0812926,3735.5,3735.4,7.76918946]
[1753386830209,2.0812926,3735.5,3735.4,5.0921]
[1753386830412,1.37274905,3735.5,3735.4,5.0921]
[1753386830618,2.0813127,3735.5,3735.4,5.0921]
[1753386830826,1.37274905,3735.5,3735.4,5.0921]
[1753386831029,1.37274905,3735.5,3735.4,7.76918946]
[1753386831212,1.53136279,3735.5,3735.4,7.76918946]
[1753386831409,0.82274905,3735.5,3735.4,7.76918946]
[1753386831616,1.37274905,3735.5,3735.4,7.76918946]
[1753386831998,1.3728531,3735.5,3735.4,7.76918946]
[1753386832545,1.12518779,3735.5,3735.4,7.76918946]
[1753386832915,1.62044725,3735.5,3735.4,7.76918946]
[1753386833939,1.62044725,3735.5,3735.4,2.70518946]
[1753386834240,1.62044725,3735.5,3735.4,7.71918946]
[1753386835334,1.05350836,3735.5,3735.4,7.71918946]
[1753386835518,1.05350836,3735.5,3735.4,8.17298946]
[1753386835720,1.6336,3735.7,3735.6,2.67694613]
[1753386835925,1.74726206,3735.7,3735.6,2.67694613]
[1753386836265,1.74726206,3735.7,3735.6,3.62774613]
[1753386836425,0.03344839,3737.1,3735.6,3.62774613]
[1753386836426,0.70867362,3736.6,3736.5,2.67630135]
[1753386836622,1.27532556,3736.6,3736.5,7.67630135]
[1753386836823,0.56665194,3736.6,3736.5,7.67630135]
[1753386837248,0.56665194,3736.6,3736.5,7.66730135]
[1753386837580,0.56677422,3736.6,3736.5,7.66730135]
[1753386838883,0.55,3737.0,3736.9,2.67595498]
[1753386839189,1.11676406,3737.0,3736.9,4.987]
[1753386839392,1.11676406,3737.0,3736.9,7.66301487]
[1753386839681,1.11676406,3737.0,3736.9,7.58064151]
[1753386840454,0.56676406,3737.0,3736.9,7.58064151]
[1753386840987,0.56676406,3737.0,3736.9,8.03444151]
[1753386841650,0.56676406,3737.0,3736.9,7.58064151]
[1753386842693,0.56676406,3737.0,3736.9,7.63401487]
[1753386842997,0.55,3737.1,3737.0,2.67594327]
[1753386843180,0.55,3737.1,3737.0,7.62894327]
[1753386843384,0.55,3737.5,3737.2,2.67575198]
[1753386843584,0.55,3737.5,3737.4,2.67565687]
[1753386843758,0.55,3737.5,3737.3,7.62671972]
[1753386843961,0.98661655,3737.7,3737.4,2.67565687]
[1753386844307,0.98661655,3737.7,3737.6,2.67551369]
[1753386844508,0.33783229,3738.9,3737.5,6.2297]
[1753386844679,0.3044,3738.9,3738.5,2.67486402]
[1753386844875,0.3044,3738.9,3738.6,4.944]
[1753386845082,0.7457,3738.9,3738.6,7.61878088]
[1753386845287,0.7457,3738.9,3738.6,4.944]
[1753386845617,0.3044,3738.9,3738.6,4.944]
[1753386845781,0.1336,3738.7,3738.6,4.944]
[1753386846181,0.1336,3738.7,3738.6,7.61879805]
[1753386846409,0.1336,3738.7,3738.6,4.944]
[1753386846922,0.6836,3738.7,3738.6,4.944]
[1753386848014,0.6836,3738.7,3738.6,7.61879805]
[1753386848708,0.6836,3738.7,3738.5,2.67485126]
[1753386848908,0.3044,3738.9,3738.6,4.918]
[1753386849298,0.1336,3738.7,3738.6,7.59279805]
[1753386850432,3.5749,3738.7,3738.6,4.903]
[1753386850634,4.45602879,3738.7,3738.6,4.903]
[1753386850988,1.45602879,3738.7,3738.6,4.903]
[1753386851187,1.026,3738.7,3738.6,4.903]
[1753386852229,1.026,3738.7,3737.5,1.2425]
[1753386852230,0.47143408,3738.7,3736.3,2.67640786]
[1753386852428,5.67494372,3738.4,3737.6,2.67545739]
[1753386852640,0.03343765,3738.3,3737.7,7.56942039]
[1753386852943,3.0,3738.2,3737.8,4.894]
[1753386853138,0.03343944,3738.1,3737.8,4.894]
[1753386853342,0.1336,3737.9,3737.8,7.56937053]
[1753386854136,0.5749,3737.9,3736.7,0.4538]
[1753386854449,0.1336,3737.2,3737.1,2.67581322]
[1753386854736,0.1336,3737.2,3737.1,7.55681322]
[1753386855037,1.5,3738.0,3737.3,0.821]
[1753386855250,1.6336,3738.0,3737.6,2.67551369]
[1753386855445,0.002,3737.9,3737.7,4.884]
[1753386855842,0.002,3737.9,3737.8,2.67531598]
[1753386857148,0.002,3737.9,3737.8,4.9091]
[1753386857444,0.002,3737.9,3737.8,7.58447053]
[1753386857851,0.002,3737.9,3737.8,8.01667053]
[1753386858763,0.002,3737.9,3737.8,7.57247053]
[1753386859624,1.502,3737.9,3737.8,7.57247053]
[1753386860328,1.9536,3737.9,3737.8,0.0271]
[1753386860531,8.41499896,3737.9,3737.8,0.0271]
[1753386860740,5.7397,3737.9,3737.8,0.0271]
[1753386860927,8.41499896,3737.9,3737.8,0.0271]
[1753386861124,5.7397,3737.9,3737.8,0.0271]
[1753386861330,5.258,3737.9,3737.8,0.0271]
[1753386861949,1.502,3737.9,3737.8,2.70247053]
[1753386862471,1.502,3737.9,3737.8,3.13467053]
[1753386864661,1.502,3737.9,3737.8,3.62397053]
[1753386864859,0.002,3737.9,3737.8,3.62397053]
[1753386865935,1e-08,3737.9,3737.8,3.62397053]
[1753386866138,1e-08,3737.9,3737.8,4.41797053]
[1753386868237,1e-08,3737.9,3737.8,9.24697053]
[1753386868439,1e-08,3737.9,3737.8,12.24697053]
[1753386868642,0.002,3739.0,3738.9,2.67458343]
[1753386868889,0.002,3739.0,3738.9,7.49358343]
[1753386869241,0.002,3739.0,3738.9,8.41508343]
[1753386870349,0.002,3739.0,3738.9,8.54868343]
[1753386870555,1e-08,3739.0,3738.9,8.54868343]
[1753386871839,1e-08,3739.0,3738.9,3.72968343]
[1753386872041,1e-08,3739.0,3738.9,8.03738343]
[1753386873551,1e-08,3739.0,3738.9,7.60518343]
[1753386873767,1e-08,3739.0,3738.9,8.03738343]
[1753386874291,1e-08,3739.0,3738.9,3.24038343]
[1753386874446,1e-08,3739.0,3738.9,7.59718343]
[1753386875474,1e-08,3739.0,3738.9,2.80818343]
[1753386875678,1e-08,3739.0,3738.9,7.59318343]
[1753386877487,1e-08,3739.0,3738.9,7.58618343]
[1753386877903,1e-08,3739.0,3738.9,7.61328343]
[1753386878209,1e-08,3739.0,3738.9,2.83528343]
[1753386878401,1e-08,3739.0,3738.9,7.59728343]
[1753386878781,1e-08,3739.0,3738.9,8.02948343]
[1753386880419,1e-08,3739.0,3738.9,2.70168343]
[1753386880613,0.13360001,3739.0,3738.9,7.45168343]
[1753386881923,1e-08,3739.0,3738.9,7.45168343]
[1753386882093,1e-08,3739.0,3738.9,7.88388343]
[1753386882502,1e-08,3739.0,3738.9,8.50678343]
[1753386883221,1e-08,3739.0,3738.9,7.44268343]
[1753386884620,1e-08,3739.0,3738.9,7.43268343]
[1753386884818,1e-08,3739.0,3738.9,2.70168343]
[1753386885153,1e-08,3739.0,3738.9,7.43268343]
[1753386888709,1e-08,3739.0,3738.9,7.87378343]
[1753386888902,0.30440001,3739.0,3738.9,2.70168343]
[1753386889437,0.30440001,3739.0,3738.9,0.0271]
[1753386889635,1.2733314,3739.0,3738.9,4.7311]
[1753386889839,1.23990001,3739.0,3738.9,4.7311]
[1753386890207,4.23990001,3739.0,3738.9,0.0271]
[1753386890402,6.91441191,3739.0,3738.9,4.7281]
[1753386890609,6.91441191,3739.0,3738.9,0.0271]
[1753386891345,4.23990001,3739.0,3738.9,0.0271]
[1753386892619,4.23990001,3739.0,3738.9,4.7241]
[1753386893745,3.74620001,3739.0,3738.9,4.7241]
[1753386894947,4.23990001,3739.0,3738.9,4.7091]
[1753386895555,3.74620001,3739.0,3738.9,4.7091]
[1753386898354,6.91441191,3739.0,3738.9,0.0271]
[1753386899453,6.91441191,3739.0,3738.9,0.0281]
[1753386900441,11.56741191,3739.0,3738.9,0.0281]
[1753386900965,13.17341191,3739.0,3738.9,1e-08]
[1753386901130,22.30846107,3739.0,3738.9,1e-08]
[1753386901335,22.88006299,3739.0,3738.9,1e-08]
[1753386901543,23.80846107,3739.0,3738.9,1e-08]
[1753386901743,24.37957085,3739.0,3738.9,1e-08]
[1753386901949,13.06441191,3739.0,3738.9,1e-08]
[1753386902144,13.06141191,3739.0,3738.9,1e-08]
[1753386902545,13.06041191,3739.0,3738.9,1e-08]
[1753386902975,12.56671191,3739.0,3738.9,1e-08]
[1753386903284,11.06671191,3739.0,3738.9,1e-08]
[1753386903577,11.56041191,3739.0,3738.9,1e-08]
[1753386903932,8.88590001,3739.0,3738.9,1e-08]
[1753386904134,11.56041191,3739.0,3738.9,1e-08]
[1753386908361,6.91441191,3739.0,3738.9,1e-08]
[1753386908566,11.53841191,3739.0,3738.9,1e-08]
[1753386908775,6.91441191,3739.0,3738.9,1e-08]
[1753386908982,11.53441191,3739.0,3738.9,1e-08]
[1753386909181,11.53141191,3739.0,3738.9,1e-08]
[1753386909487,8.85490001,3739.0,3738.9,1e-08]
[1753386909648,7.91840001,3739.0,3738.9,1e-08]
[1753386909841,10.59291191,3739.0,3738.9,1e-08]
[1753386910044,11.03471191,3739.0,3738.9,1e-08]
[1753386910259,8.36020001,3739.0,3738.9,1e-08]
[1753386910454,7.91440001,3739.0,3738.9,1e-08]
[1753386910754,7.61000001,3739.0,3738.9,1e-08]
[1753386911507,3.00000001,3739.0,3738.9,1e-08]
[1753386911646,11.2534433,3739.0,3738.9,1e-08]
[1753386911850,11.52441191,3739.0,3738.9,1e-08]
[1753386914559,11.51441191,3739.0,3738.9,1e-08]
[1753386915493,6.91441191,3739.0,3738.9,1e-08]
[1753386915660,11.51141191,3739.0,3738.9,1e-08]
[1753386916187,5.67451191,3739.0,3738.9,1e-08]
[1753386916386,10.26351191,3739.0,3738.9,1e-08]
[1753386917260,11.17811191,3739.0,3738.9,1e-08]
[1753386918054,11.47751191,3739.0,3738.9,1e-08]
[1753386918851,11.58945571,3739.0,3738.9,1e-08]
[1753386919091,12.04995571,3739.0,3738.9,1e-08]
[1753386919606,12.04995571,3739.0,3738.1,0.001]
[1753386919607,7.58548426,3738.2,3738.1,1e-08]
[1753386919896,12.16748426,3738.2,3738.1,1e-08]
[1753386920220,11.47808426,3738.2,3738.1,1e-08]
[1753386920691,12.0494649,3738.2,3738.1,1e-08]
[1753386920995,3.0,3738.2,3738.1,1e-08]
[1753386921169,0.3044,3738.7,3738.1,1e-08]
[1753386921170,4.582,3738.6,3738.1,0.95020001]
[1753386921374,4.582,3738.6,3738.2,0.4748]
[1753386921375,5.1543551,3738.6,3738.2,0.4748]
[1753386921584,2.67508426,3738.2,3738.1,1e-08]
[1753386921787,3.0,3738.2,3738.1,1e-08]
[1753386923602,7.582,3738.2,3738.1,1e-08]
[1753386924112,7.575,3738.2,3738.1,1e-08]